bitfinex-derivatives/quotes_ETHF0:USTF0_20250316
["timestamp","ask_amount","ask_price","bid_price","bid_amount"]
[1742136552152,1.77717,1886.8,1886.7,3.16883]
[1742136553242,1.77717,1886.8,1886.7,2.1088]
[1742136553642,2.48286,1886.9,1886.7,2.1088]
[1742136553843,2.48286,1886.9,1886.8,2.43657]
[1742136554942,1.0599,1887.0,1886.9,1.05991]
[1742136555146,1.0599,1887.0,1886.9,3.13241]
[1742136555147,2.3869,1887.0,1886.9,3.13241]
[1742136555451,1.3813,1887.2,1886.9,2.0725]
[1742136555651,1.06756428,1887.5,1887.1,5.85731]
[1742136555951,0.00794428,1887.5,1887.3,3.2078]
[1742136556156,0.00794428,1887.5,1887.4,1.05963]
[1742136556547,3.2078,1888.0,1887.4,7.08563]
[1742136556751,7.18306,1888.0,1887.5,3.2078]
[1742136556948,3.96869,1887.9,1887.5,5.67325]
[1742136557151,0.7102,1888.1,1887.6,1.4059]
[1742136557457,2.37967,1887.9,1887.7,4.26722]
[1742136557652,2.37967,1887.9,1887.8,1.4059]
[1742136558754,2.37967,1887.9,1887.8,2.46531]
[1742136558955,1.05937,1887.9,1887.8,2.46531]
[1742136559145,1.05937,1887.9,1887.8,1.4059]
[1742136560862,1.05937,1887.9,1887.8,2.46531]
[1742136561755,1.05937,1887.9,1887.8,1.4059]
[1742136562444,2.52277,1887.9,1887.8,1.4059]
[1742136563047,2.52277,1887.9,1887.8,2.46531]
[1742136563253,2.52277,1887.9,1887.8,1.4059]
[1742136564350,2.52277,1887.9,1887.8,2.46531]
[1742136564543,2.52277,1887.9,1887.8,1.4059]
[1742136565757,2.52277,1887.9,1887.8,2.46531]
[1742136566054,1.05937,1887.9,1887.8,2.46531]
[1742136566259,1.05935,1887.9,1887.8,2.46527]
[1742136567452,2.48788428,1888.0,1887.8,2.46527]
[1742136567652,0.00794428,1888.0,1887.9,2.42395]
[1742136568157,0.00794428,1888.0,1887.9,5.63175]
[1742136568663,3.2078,1888.7,1888.0,2.64814]
[1742136568959,4.26675,1888.7,1888.5,1.05898]
[1742136569159,5.64515,1888.7,1888.6,1.4236]
[1742136569660,3.2078,1888.7,1888.6,2.48256]
[1742136570054,1.06682428,1888.8,1888.7,1.0589]
[1742136570249,0.00794428,1888.8,1888.7,2.4825]
[1742136570453,0.00794428,1888.8,1888.7,6.0065]
[1742136570852,1.05868,1889.1,1888.7,8.5065]
[1742136571057,1.05868,1889.1,1889.0,1.05871]
[1742136571364,1.05855,1889.4,1889.2,1.05858]
[1742136571655,1.05859,1889.3,1889.1,1.05865]
[1742136571865,2.43698,1889.3,1889.1,1.43154428]
[1742136572053,2.43698,1889.3,1889.1,2.49020428]
[1742136572561,2.43698,1889.3,1889.2,1.4351]
[1742136573263,1.05862,1889.2,1889.1,0.00794428]
[1742136573460,3.08702,1889.2,1889.1,0.00794428]
[1742136573963,1.05862,1889.2,1889.1,0.00794428]
[1742136574555,1.3225,1889.4,1889.1,0.00794428]
[1742136574765,1.05854,1889.4,1889.2,1.05858]
[1742136574957,1.05854,1889.4,1889.3,2.0994]
[1742136575260,2.38894428,1889.5,1889.3,2.0994]
[1742136575455,2.38894428,1889.5,1889.4,1.3171]
[1742136576758,1.05862,1889.2,1889.1,3.52994428]
[1742136577062,1.05861,1889.3,1889.1,4.58857428]
[1742136577260,1.0586,1889.3,1889.1,4.58857428]
[1742136577857,1.0586,1889.3,1889.2,1.05862]
[1742136578164,1.05856,1889.4,1889.2,4.5249]
[1742136578365,1.05856,1889.4,1889.3,1.05857]
[1742136578667,1.05857,1889.3,1889.2,9.10548]
[1742136578851,1.05854,1889.4,1889.2,9.10548]
[1742136579051,1.05854,1889.4,1889.3,1.05857]
[1742136579261,1.05854,1889.4,1889.2,9.10549]
[1742136579463,1.05857,1889.3,1889.2,8.0469]
[1742136579663,2.49437,1889.3,1889.2,8.0469]
[1742136580761,1.4358,1889.3,1889.2,9.10552]
[1742136580965,1.05856,1889.4,1889.2,8.0469]
[1742136581165,1.05856,1889.4,1889.3,1.05857]
[1742136581666,1.05857,1889.3,1889.2,9.10549]
[1742136581867,1.05855,1889.4,1889.2,9.10549]
[1742136582452,1.35384428,1889.5,1889.4,1.05851]
[1742136582666,0.00794428,1889.5,1889.4,4.26631]
[1742136584370,2.64473,1890.6,1889.5,2.64614]
[1742136584560,1.4494,1890.4,1890.0,3.2078]
[1742136584867,1.05809,1890.2,1890.1,2.48752]
[1742136585055,1.4494,1890.4,1890.1,1.05811]
[1742136585259,1.05802,1890.3,1890.1,1.05811]
[1742136585561,1.05806,1890.2,1890.1,0.71444428]
[1742136585863,1.4494,1890.2,1890.1,1.77256428]
[1742136586170,2.50746,1890.2,1890.1,1.77256428]
[1742136587762,2.50746,1890.2,1890.1,0.00794428]
[1742136590270,2.50746,1890.2,1889.4,7.78629]
[1742136590271,2.64549,1890.0,1889.4,7.78629]
[1742136590469,1.05836,1889.7,1889.6,1.05836]
[1742136590771,1.05836,1889.7,1889.6,3.2078]
[1742136591172,1.0584,1889.6,1889.5,1.05843]
[1742136591470,1.0584,1889.6,1889.5,1.06637428]
[1742136591966,1.4006,1889.9,1889.6,1.05838]
[1742136592271,1.4006,1889.9,1889.5,3.21574428]
[1742136592570,1.05835,1889.7,1889.6,1.05837]
[1742136592770,1.0584,1889.6,1889.5,4.27415428]
[1742136592974,1.05838,1889.7,1889.6,1.05839]
[1742136593272,1.05838,1889.7,1889.5,4.27415428]
[1742136593473,1.4006,1889.9,1889.8,1.05829]
[1742136593663,1.05823,1889.9,1889.8,1.05824]
[1742136593961,2.47312,1890.0,1889.9,1.05823]
[1742136594161,1.05824,1889.9,1889.8,1.05825]
[1742136594357,2.47314,1889.9,1889.8,1.05825]
[1742136594871,1.4149,1889.9,1889.8,1.05825]
[1742136595071,2.47313,1889.9,1889.8,1.05825]
[1742136595372,2.47313,1889.9,1889.7,8.0757]
[1742136595670,2.47313,1889.9,1889.8,1.05829]
[1742136597266,1.4149,1889.9,1889.7,8.0757]
[1742136597570,2.47318,1889.9,1889.8,1.05829]
[1742136598161,1.05829,1889.8,1889.7,9.134]
[1742136598364,2.47479,1889.8,1889.7,9.134]
[1742136598672,1.4165,1889.8,1889.7,9.134]
[1742136599070,2.47479,1889.8,1889.7,9.134]
[1742136599769,1.4165,1889.8,1889.7,9.134]
[1742136599971,1.05816,1890.1,1890.0,1.05817]
[1742136600166,5.28916,1890.7,1890.0,1.05817]
[1742136600167,0.00794428,1890.4,1890.0,6.7268]
[1742136600373,1.06589428,1890.4,1890.3,1.05801]
[1742136600674,1.05801,1890.3,1890.2,4.26586]
[1742136600879,1.06590428,1890.4,1890.3,1.05801]
[1742136601174,1.33554428,1890.4,1890.3,2.48631]
[1742136601372,2.39349428,1890.4,1890.3,1.4283]
[1742136601566,2.39349428,1890.4,1890.2,4.26582]
[1742136601567,1.05801,1890.3,1890.2,4.26586]
[1742136601769,1.3276,1890.3,1890.2,5.69416]
[1742136602067,0.00794428,1890.4,1890.3,1.05801]
[1742136603570,3.2078,1890.8,1890.7,1.05778]
[1742136604077,5.63006,1890.8,1890.7,1.05778]
[1742136604372,4.5723,1890.8,1890.7,1.05778]
[1742136604573,3.2078,1890.8,1890.7,2.40188]
[1742136604876,3.2078,1890.8,1890.7,3.09238]
[1742136605074,4.5723,1890.8,1890.7,3.09238]
[1742136605573,1.3645,1890.8,1890.7,3.09238]
[1742136605767,0.00794428,1890.9,1890.8,1.05773]
[1742136605963,2.64363,1891.4,1890.8,1.05773]
[1742136605964,3.2078,1891.6,1891.2,1.05747]
[1742136606176,3.2078,1891.6,1891.3,1.3454]
[1742136606177,1.3844,1891.4,1891.3,1.3454]
[1742136606371,2.44179,1891.4,1891.3,1.3454]
[1742136607373,0.00794428,1891.5,1891.4,1.05739]
[1742136607672,1.06528428,1891.5,1891.4,1.05739]
[1742136607975,0.00794428,1891.5,1891.4,2.40279]
[1742136608269,3.2078,1892.3,1891.5,2.64335]
[1742136608569,3.2078,1892.3,1891.8,3.2078]
[1742136608773,4.26474,1892.3,1892.0,3.2078]
[1742136609076,3.534,1892.8,1892.0,3.2078]
[1742136609077,2.64141,1892.9,1892.2,3.2078]
[1742136609277,1.4528,1892.6,1892.3,1.4037]
[1742136609470,1.05678,1892.5,1892.4,0.00794428]
[1742136609670,2.50955,1892.6,1892.4,2.46846428]
[1742136609871,1.4528,1892.6,1892.5,1.05678]
[1742136610065,2.50954,1892.6,1892.4,2.46843428]
[1742136610271,1.4528,1892.6,1892.4,4.61944428]
[1742136610575,1.4528,1892.6,1892.4,0.00794428]
[1742136610576,4.26458,1892.5,1892.4,0.00794428]
[1742136610779,4.26458,1892.5,1892.0,3.2078]
[1742136610780,1.05696,1892.2,1892.0,2.46071]
[1742136611076,1.057,1892.1,1892.0,1.4037]
[1742136611271,1.05697,1892.2,1892.0,5.66856]
[1742136611574,1.4528,1892.1,1892.0,5.66856]
[1742136612482,4.604,1892.5,1892.0,7.1115]
[1742136612674,1.06197622,1892.7,1892.4,1.05679]
[1742136612973,1.06197622,1892.7,1892.5,1.4529]
[1742136612974,0.00529622,1892.7,1892.5,1.4529]
[1742136613172,1.45,1892.6,1892.5,1.4529]
[1742136613372,1.06200622,1892.7,1892.5,1.4529]
[1742136613570,1.45,1892.6,1892.5,1.4529]
[1742136613769,2.50672,1892.6,1892.5,1.4529]
[1742136614177,1.45,1892.6,1892.3,3.546]
[1742136614376,1.05682,1892.5,1892.3,6.7538]
[1742136614673,1.45,1892.4,1892.3,6.7538]
[1742136615078,0.00529622,1892.7,1892.3,6.7538]
[1742136615274,0.00529622,1892.7,1892.4,1.4527]
[1742136615472,1.06198622,1892.7,1892.5,1.05676]
[1742136615672,1.06198622,1892.7,1892.6,1.4527]
[1742136616272,0.00529622,1892.7,1892.6,1.4527]
[1742136616467,0.00529622,1892.7,1892.6,2.50942]
[1742136616672,0.00529622,1892.7,1892.6,6.06342]
[1742136616878,0.00529622,1892.7,1892.6,5.0067]
[1742136617179,0.00529622,1892.7,1892.6,6.06342]
[1742136617478,0.00529622,1892.7,1892.6,6.41734644]
[1742136617681,1.0565,1893.0,1892.6,6.09112644]
[1742136617978,1.0565,1893.0,1892.9,3.2078]
[1742136618178,1.385,1893.2,1892.9,4.26435]
[1742136618179,1.05646,1893.1,1892.9,4.26435]
[1742136618479,1.05646,1893.1,1892.7,1.3739]
[1742136618480,1.05646,1893.1,1893.0,1.3739]
[1742136618877,1.06433428,1893.2,1893.0,1.3739]
[1742136619081,0.00794428,1893.2,1893.1,1.05644]
[1742136619583,1.0562,1893.6,1893.1,1.4159]
[1742136619773,1.05627,1893.4,1893.2,7.82515]
[1742136619973,1.05633,1893.3,1893.2,4.9349]
[1742136620283,1.05624,1893.5,1893.3,1.05632]
[1742136620485,1.05622,1893.5,1893.4,1.3739]
[1742136620982,1.05639,1893.2,1893.0,7.83127]
[1742136621179,3.2078,1893.5,1893.0,8.096]
[1742136621371,1.05631,1893.4,1893.2,1.05639]
[1742136621569,3.9366,1893.5,1893.0,8.096]
[1742136621768,1.05629,1893.4,1893.2,1.05636]
[1742136621968,0.7288,1893.5,1893.3,1.3212]
[1742136622184,1.05627,1893.4,1893.3,1.3212]
[1742136622571,0.7288,1893.5,1893.0,6.7748]
[1742136622777,1.05637,1893.3,1893.1,1.3212]
[1742136622978,1.05639,1893.2,1893.1,1.3212]
[1742136623177,6.54192,1893.4,1892.9,0.00794428]
[1742136623386,3.9011,1893.4,1892.9,0.00794428]
[1742136623686,3.9011,1893.4,1893.1,1.05643]
[1742136623892,1.0564,1893.2,1893.0,1.05646]
[1742136624089,4.95742,1893.4,1893.1,1.4104]
[1742136624388,3.9011,1893.4,1893.2,1.05639]
[1742136624590,4.95737,1893.4,1893.3,1.4104]
[1742136624779,1.05645,1893.1,1892.9,7.84327072]
[1742136624978,3.9011,1893.4,1893.0,1.4104]
[1742136625184,0.6933,1893.4,1893.1,3.2078]
[1742136625384,1.05639,1893.2,1893.1,3.2078]
[1742136625587,0.6933,1893.4,1893.1,1.05644]
[1742136625888,1.05646,1893.1,1893.0,1.0565]
[1742136626275,3.9011,1893.4,1892.9,7.14567072]
[1742136626276,1.05635,1893.3,1892.9,7.14567072]
[1742136626477,1.05639,1893.2,1893.1,3.2078]
[1742136627482,1.05644,1893.1,1893.0,2.4313]
[1742136627682,1.0565,1893.0,1892.9,3.56967072]
[1742136627883,1.0565,1893.0,1892.9,0.36187072]
[1742136628286,1.05644,1893.1,1892.9,0.00794428]
[1742136628483,1.0565,1893.0,1892.9,0.00794428]
[1742136628879,3.2078,1893.2,1892.9,1.06445428]
[1742136629093,1.05644,1893.1,1893.0,1.3748]
[1742136629592,1.05644,1893.1,1893.0,2.4313]
[1742136629789,1.05644,1893.1,1893.0,1.3748]
[1742136630490,1.0565,1893.0,1892.9,0.00794428]
[1742136631282,3.873,1893.0,1892.9,0.00794428]
[1742136631483,3.873,1893.0,1892.6,1.4583]
[1742136631484,1.05667,1892.7,1892.6,1.4583]
[1742136632585,4.08885,1892.8,1892.4,1.0568]
[1742136632791,1.05678,1892.5,1892.4,1.0568]
[1742136633088,1.05678,1892.5,1892.4,4.27254309]
[1742136633287,1.05678,1892.5,1892.4,0.00792309]
[1742136633688,3.05136,1892.6,1892.4,4.61572309]
[1742136633991,1.05678,1892.5,1892.4,5.67252309]
[1742136634190,2.38958,1892.5,1892.4,1.40792309]
[1742136634594,2.38958,1892.5,1892.4,2.46475309]
[1742136634787,2.38958,1892.5,1892.4,5.67255309]
[1742136635895,2.38958,1892.5,1892.4,4.61572309]
[1742136636100,1.05674,1892.6,1892.4,4.61572309]
[1742136636391,1.05672,1892.6,1892.5,1.05678]
[1742136636597,2.50419,1892.7,1892.6,1.05672]
[1742136636889,1.05669,1892.7,1892.6,1.05672]
[1742136637082,2.50419,1892.7,1892.6,1.05672]
[1742136637587,1.06452363,1892.8,1892.7,1.05667]
[1742136637789,0.00787363,1892.8,1892.6,4.92608]
[1742136638096,1.06451363,1892.8,1892.7,2.50587]
[1742136638495,0.00787363,1892.8,1892.7,2.50587]
[1742136638788,1.06448363,1892.8,1892.7,2.50587]
[1742136638989,1.06448363,1892.8,1892.7,3.16394684]
[1742136640296,1.06448363,1892.8,1892.7,2.10727684]
[1742136641297,1.06448363,1892.8,1892.7,1.4492]
[1742136641594,0.00787363,1892.8,1892.7,2.50587]
[1742136642301,0.00787363,1892.8,1892.7,3.21197]
[1742136642591,0.00787363,1892.8,1892.7,3.8706368]
[1742136642889,0.00787363,1892.8,1892.7,4.5902368]
[1742136643599,5.60565,1893.3,1893.2,1.05639]
[1742136643797,1.05635,1893.3,1893.2,1.05639]
[1742136643996,2.39521,1893.4,1893.3,1.05633]
[1742136644196,1.05639,1893.2,1893.1,3.2141]
[1742136644385,1.3389,1893.3,1893.1,0.7196]
[1742136644593,1.05639,1893.2,1893.1,0.7196]
[1742136644892,1.05642,1893.2,1893.1,1.71499706]
[1742136645098,2.39526,1893.3,1893.2,1.05639]
[1742136645793,1.3389,1893.3,1893.2,1.05639]
[1742136646394,4.26411,1893.4,1893.0,5.84903]
[1742136646698,1.05634,1893.3,1893.2,1.05634]
[1742136646900,4.2641,1893.4,1893.3,1.05633]
[1742136647301,3.2078,1893.4,1893.3,1.05633]
[1742136647892,4.5819,1893.4,1893.3,1.71473169]
[1742136648292,3.2078,1893.4,1893.3,1.71473169]
[1742136648493,0.0203,1893.8,1893.7,1.05611]
[1742136649098,0.0203,1893.8,1893.7,2.42751]
[1742136649304,1.3311,1894.1,1894.0,1.05594]
[1742136649506,0.6926,1894.2,1894.1,1.05588]
[1742136649810,1.05591,1894.1,1893.9,6.8028]
[1742136650105,2.0237,1894.2,1893.7,4.5792]
[1742136650301,1.05604,1893.9,1893.6,3.60692309]
[1742136650595,1.05606,1893.8,1893.6,6.07614309]
[1742136650801,1.05611,1893.7,1893.6,3.60692309]
[1742136651002,1.78311,1893.7,1893.6,0.00792309]
[1742136651191,0.727,1893.7,1893.6,0.00792309]
[1742136651505,1.78311,1893.7,1893.6,0.00792309]
[1742136651892,4.99091,1893.7,1893.6,0.00792309]
[1742136652099,7.49091,1893.7,1893.6,0.00792309]
[1742136652295,2.64057,1893.5,1893.1,0.6792]
[1742136652595,6.834,1893.7,1893.1,0.6792]
[1742136652596,5.3385,1893.6,1893.3,1.05631]
[1742136652802,1.4443,1893.4,1893.3,1.05633]
[1742136653103,1.7426,1893.6,1893.4,1.05625]
[1742136653403,3.1869,1893.6,1893.5,1.05622]
[1742136653702,2.1307,1893.6,1893.3,0.00792309]
[1742136653898,1.05627,1893.4,1893.3,0.00792309]
[1742136654393,2.50056,1893.5,1893.3,1.06425309]
[1742136654598,2.50056,1893.5,1893.3,0.00792309]
[1742136654802,1.4443,1893.5,1893.3,0.00792309]
[1742136655000,2.41357,1893.4,1893.3,0.00792309]
[1742136655203,1.3573,1893.4,1893.3,1.06425309]
[1742136655398,2.41357,1893.4,1893.3,0.00792309]
[1742136657095,5.62137,1893.4,1893.3,0.00792309]
[1742136657898,1.05651,1893.0,1892.9,1.05653]
[1742136658109,1.05648,1893.1,1892.9,1.05655]
[1742136658408,1.0564,1893.2,1893.1,1.05642]
[1742136658713,1.05639,1893.2,1893.1,1.05644]
[1742136658904,2.40586,1893.3,1893.2,1.05639]
[1742136659201,1.3495,1893.3,1893.2,1.05639]
[1742136659408,5.826,1893.5,1893.2,1.05639]
[1742136659610,1.05632,1893.4,1893.2,0.6921]
[1742136660100,1.3495,1893.5,1893.2,6.54087]
[1742136660300,1.3495,1893.5,1893.4,1.05627]
[1742136660908,3.21572309,1893.7,1893.5,1.05622]
[1742136661203,0.00792309,1893.7,1893.6,1.05616]
[1742136661505,0.00792309,1893.7,1893.6,1.74826]
[1742136661909,0.00792309,1893.7,1893.6,4.95606]
[1742136662600,1.06403309,1893.7,1893.6,4.95606]
[1742136662805,0.00792309,1893.7,1893.6,4.95606]
[1742136663213,0.00792309,1893.7,1893.6,8.56706]
[1742136663509,1.05616,1893.6,1893.5,4.3402]
[1742136663700,2.45476,1893.6,1893.5,4.3402]
[1742136664309,0.00792309,1893.7,1893.5,1.05622]
[1742136664503,2.46265309,1893.7,1893.6,1.05616]
[1742136664813,1.05616,1893.6,1893.5,1.05618]
[1742136665107,2.46267309,1893.7,1893.5,1.05618]
[1742136665512,1.05616,1893.6,1893.4,1.73144]
[1742136665704,1.05622,1893.5,1893.4,0.6752]
[1742136666000,1.3986,1893.6,1893.4,5.34247]
[1742136666208,1.3986,1893.6,1893.4,4.2862]
[1742136666402,1.05622,1893.5,1893.4,4.2862]
[1742136666705,1.3986,1893.6,1893.4,0.6752]
[1742136666908,1.05622,1893.5,1893.4,0.6752]
[1742136667302,1.05627,1893.4,1893.3,7.87413]
[1742136667503,1.3758,1893.4,1893.2,3.609]
[1742136667698,1.05638,1893.3,1893.2,1.05639]
[1742136667896,1.05638,1893.3,1893.1,3.2078]
[1742136667897,1.05638,1893.3,1893.1,4.2642]
[1742136668102,2.43219,1893.2,1893.1,1.0564]
[1742136668501,2.43221,1893.2,1893.0,0.00792309]
[1742136668705,1.3758,1893.1,1893.0,1.06442309]
[1742136668904,2.43224,1893.1,1893.0,0.00792309]
[1742136669498,3.82024,1893.1,1893.0,0.00792309]
[1742136669703,1.0565,1893.0,1892.5,3.2078]
[1742136669901,1.4201,1893.0,1892.5,3.2078]
[1742136670103,1.05667,1892.7,1892.6,1.05669]
[1742136670302,1.05663,1892.8,1892.7,1.05665]
[1742136670499,1.05672,1892.6,1892.5,3.2078]
[1742136671109,1.05672,1892.6,1892.5,4.26458]
[1742136671301,1.42802309,1892.7,1892.4,0.00792309]
[1742136671502,1.42802309,1892.7,1892.5,1.05677]
[1742136671698,1.05675,1892.6,1892.5,3.2078]
[1742136671901,1.05675,1892.6,1892.5,1.05678]
[1742136672497,2.48472309,1892.7,1892.5,1.05678]
[1742136672706,1.05674,1892.6,1892.4,0.00792309]
[1742136672909,1.3992,1892.5,1892.4,1.06470309]
[1742136673109,0.00792309,1892.7,1892.4,2.64997309]
[1742136673311,0.00792309,1892.7,1892.6,1.05672]
[1742136674002,1.06460309,1892.7,1892.5,6.8218]
[1742136674202,1.06460309,1892.7,1892.5,7.87853]
[1742136674411,0.00792309,1892.7,1892.6,1.05672]
[1742136674811,2.46379309,1892.7,1892.6,1.05672]
[1742136675207,1.05678,1892.5,1892.4,3.61892309]
[1742136675514,0.7122,1892.6,1892.4,0.00792309]
[1742136675713,2.37728,1892.5,1892.4,0.00792309]
[1742136675910,1.3205,1892.5,1892.4,0.00792309]
[1742136676407,2.37728,1892.5,1892.4,0.00792309]
[1742136678510,8.48928,1892.5,1892.4,0.00792309]
[1742136678809,10.07451,1892.5,1891.8,4.27041048]
[1742136679005,10.07451,1892.5,1891.7,3.56172644]
[1742136679006,1.3196,1892.4,1891.9,4.5986]
[1742136679210,1.05696,1892.2,1892.0,1.05702]
[1742136679415,1.3196,1892.4,1891.9,8.2136]
[1742136679612,1.05689,1892.3,1892.1,1.05696]
[1742136679907,1.3196,1892.4,1891.9,8.2136]
[1742136679908,1.3196,1892.4,1892.0,0.00792309]
[1742136680110,1.3196,1892.2,1892.0,0.00792309]
[1742136680318,1.3196,1892.2,1892.0,1.06493309]
[1742136680718,2.37654,1892.2,1892.1,1.4611]
[1742136681612,1.05718,1891.8,1891.6,1.05727]
[1742136681811,2.8084,1892.1,1891.7,1.3726]
[1742136682011,1.05715,1891.9,1891.7,1.3726]
[1742136682214,2.50657,1891.8,1891.7,1.3726]
[1742136682613,1.05728,1891.6,1891.5,3.9212]
[1742136682808,2.50666,1891.7,1891.6,0.00792309]
[1742136683015,2.51458309,1891.7,1891.6,0.00792309]
[1742136684016,2.13942309,1891.7,1891.6,0.00792309]
[1742136684215,3.19664309,1891.7,1891.6,0.00792309]
[1742136685318,3.19664309,1891.7,1891.6,1.06520309]
[1742136685518,3.19664309,1891.7,1891.6,0.00792309]
[1742136686615,3.19664309,1891.7,1891.6,1.40992309]
[1742136687325,4.78250309,1891.7,1891.3,1.05742]
[1742136687516,1.05737,1891.5,1891.4,1.05737]
[1742136687719,1.05739,1891.4,1891.3,2.48512]
[1742136688013,2.51459,1891.4,1891.3,2.48512]
[1742136688310,1.4572,1891.4,1891.3,2.48512]
[1742136688515,1.05738,1891.5,1891.4,1.05739]
[1742136688723,2.51458,1891.5,1891.4,2.48509]
[1742136689220,2.51458,1891.5,1891.4,1.4277]
[1742136689610,1.4572,1891.5,1891.4,2.48509]
[1742136689811,1.77409,1891.6,1891.5,1.05734]
[1742136690013,3.23129,1891.6,1891.5,2.48504]
[1742136691023,3.23129,1891.6,1891.5,1.4277]
[1742136691322,1.05729,1891.6,1891.5,1.4277]
[1742136692418,2.47259,1891.6,1891.5,1.4277]
[1742136694112,0.00792309,1891.7,1891.5,1.4277]
[1742136694317,0.00792309,1891.7,1891.6,2.50758]
[1742136695017,1.06514309,1891.7,1891.6,2.50758]
[1742136695416,0.00792309,1891.7,1891.6,2.50758]
[1742136695613,0.00792309,1891.7,1891.6,5.71538]
[1742136696020,5.826,1891.9,1891.8,1.05717]
[1742136696219,1.3506,1892.1,1892.0,1.05706]
[1742136696417,1.05706,1892.0,1891.9,1.3439]
[1742136697623,1.05728,1891.6,1891.5,0.35392644]
[1742136697825,1.05728,1891.6,1891.5,1.77352644]
[1742136698128,1.05728,1891.6,1891.5,2.83086644]
[1742136698419,1.05728,1891.6,1891.5,2.83085644]
[1742136698623,3.618,1891.9,1891.5,2.83085644]
[1742136698624,1.3901,1891.7,1891.5,1.77352644]
[1742136698817,2.44732,1891.7,1891.6,2.47688]
[1742136699019,2.44732,1891.7,1891.6,3.13808]
[1742136699927,2.44732,1891.7,1891.6,2.0808]
[1742136700111,2.44732,1891.7,1891.6,3.13808]
[1742136700317,2.44732,1891.7,1891.6,2.0808]
[1742136700518,2.44732,1891.7,1891.6,1.4196]
[1742136701526,2.44732,1891.7,1891.5,0.6612]
[1742136701527,1.05734,1891.5,1891.4,1.76196]
[1742136702024,1.05734,1891.5,1891.4,0.7046]
[1742136702226,3.10751,1891.6,1891.5,1.05734]
[1742136702628,1.05734,1891.5,1891.4,0.7046]
[1742136702831,2.44474,1891.5,1891.4,0.7046]
[1742136703828,2.44474,1891.5,1891.4,1.76199]
[1742136704022,2.44474,1891.5,1891.4,3.20049]
[1742136704421,1.78792,1891.6,1891.5,1.05734]
[1742136704624,3.17532,1891.6,1891.5,2.49584]
[1742136704824,3.17532,1891.6,1891.5,1.4385]
[1742136707324,2.118,1891.6,1891.5,2.49584]
[1742136707525,2.49047,1891.7,1891.6,1.05728]
[1742136707725,2.49047,1891.7,1891.6,2.49128]
[1742136708024,3.2078,1891.9,1891.6,1.434]
[1742136708220,1.05719,1891.8,1891.7,3.1507]
[1742136708426,0.00792309,1892.1,1892.0,1.05706]
[1742136708723,3.2078,1892.4,1892.3,1.05689]
[1742136708928,1.05682,1892.5,1892.2,3.2078]
[1742136709232,5.2677,1892.7,1892.4,1.05683]
[1742136709423,1.05672,1892.6,1892.5,1.3486]
[1742136709626,1.05683,1892.4,1892.3,0.7176]
[1742136709932,1.05683,1892.4,1892.3,3.12309]
[1742136711133,2.43753,1892.4,1892.3,3.12309]
[1742136711333,1.06473309,1892.5,1892.4,1.05683]
[1742136711533,1.06473309,1892.5,1892.4,1.3486]
[1742136711831,1.06473309,1892.5,1892.4,2.40543]
[1742136712231,1.06473309,1892.5,1892.4,1.3486]
[1742136712621,1.06473309,1892.5,1892.2,0.00792309]
[1742136712622,1.05689,1892.3,1892.2,0.00792309]
[1742136713333,1.05706,1892.0,1891.9,2.10619727]
[1742136714229,1.05706,1892.0,1891.9,1.4461]
[1742136715137,2.44834,1892.1,1892.0,1.05706]
[1742136715331,1.05706,1892.0,1891.9,1.4461]
[1742136715532,1.05706,1892.0,1891.9,2.50318]
[1742136715832,1.05706,1892.0,1891.9,1.4461]
[1742136716034,1.05698,1892.2,1891.9,4.08876]
[1742136716234,1.05698,1892.2,1892.1,1.05699]
[1742136716627,2.51438,1892.2,1892.1,1.3941]
[1742136717038,2.51438,1892.2,1892.1,2.1014]
[1742136717237,2.51438,1892.2,1892.1,1.3941]
[1742136719943,2.51438,1892.2,1892.1,2.4511]
[1742136720342,2.51438,1892.2,1892.1,1.3941]
[1742136720838,1.05694,1892.3,1892.1,1.3941]
[1742136721139,4.6268,1892.4,1892.2,1.05691]
[1742136721343,5.68366,1892.4,1892.3,1.3855]
[1742136721845,5.68366,1892.4,1892.3,2.44239]
[1742136722042,4.6268,1892.4,1892.3,2.44239]
[1742136722346,5.68363,1892.4,1892.3,1.3855]
[1742136722540,1.05694,1892.2,1892.1,1.05699]
[1742136722845,1.05694,1892.2,1892.1,2.44246]
[1742136723043,1.05694,1892.2,1892.1,1.3855]
[1742136724148,1.05694,1892.2,1892.1,2.4425]
[1742136724343,2.47594,1892.3,1892.2,1.05694]
[1742136724645,2.47594,1892.3,1892.2,2.37564]
[1742136724843,2.47594,1892.3,1892.2,1.3187]
[1742136730441,1.05711,1891.9,1891.8,0.00792309]
[1742136730650,4.26491,1891.9,1891.8,1.41422309]
[1742136730854,1.05711,1891.9,1891.8,1.41422309]
[1742136732043,1.05711,1891.9,1891.8,2.47139309]
[1742136732245,1.05711,1891.9,1891.8,1.41422309]
[1742136732547,1.05711,1891.9,1891.8,0.00792309]
[1742136733745,1.05711,1891.9,1891.8,1.36592309]
[1742136735857,1.05711,1891.9,1891.8,2.42309309]
[1742136736057,1.05711,1891.9,1891.8,1.36592309]
[1742136736255,2.4775,1892.0,1891.9,1.05711]
[1742136736456,2.4775,1892.0,1891.9,1.43]
[1742136736949,2.4775,1892.0,1891.9,2.1217]
[1742136737757,2.4775,1892.0,1891.9,3.17881]
[1742136738156,2.4775,1892.0,1891.9,2.1217]
[1742136738751,1.0571,1892.0,1891.9,2.1217]
[1742136739547,1.0571,1892.0,1891.9,3.17881]
[1742136739751,1.0571,1892.0,1891.9,2.1217]
[1742136740953,1.0571,1892.0,1891.9,1.4071]
[1742136742659,1.0571,1892.0,1891.9,2.46421]
[1742136743056,1.0571,1892.0,1891.9,1.4071]
[1742136744659,1.0571,1892.0,1891.9,2.46421]